bitfinex-derivatives/quotes_SOLF0:USTF0_20230105
["timestamp","ask_amount","ask_price","bid_price","bid_amount"]
[1672884561746,0.06495039,13.166,13.16,10.0]
[1672884561953,0.06495039,13.166,13.159,45.66]
[1672884562168,0.06495039,13.166,13.16,10.0]
[1672884562587,0.06495039,13.166,13.159,45.66]
[1672884562906,0.06495039,13.166,13.16,10.0]
[1672884563113,0.06495039,13.166,13.159,45.66]
[1672884563319,0.06495039,13.166,13.16,10.0]
[1672884564060,0.06495039,13.166,13.159,45.66]
[1672884564376,0.06495039,13.166,13.16,10.0]
[1672884564587,0.06495039,13.166,13.159,45.66]
[1672884565113,0.06495039,13.166,13.16,10.0]
[1672884565324,0.06495039,13.166,13.159,45.66]
[1672884565636,0.06495039,13.166,13.16,10.0]
[1672884566273,0.06495039,13.166,13.159,45.66]
[1672884566476,0.06495039,13.166,13.16,10.0]
[1672884566895,0.06495039,13.166,13.159,45.66]
[1672884567106,0.06495039,13.166,13.16,10.0]
[1672884567525,0.06495039,13.166,13.159,45.66]
[1672884567841,0.06495039,13.166,13.16,10.0]
[1672884568368,0.06495039,13.166,13.159,45.66]
[1672884568579,0.06495039,13.166,13.16,10.0]
[1672884568785,0.06495039,13.166,13.161,45.66]
[1672884568996,0.06495039,13.166,13.162,10.0]
[1672884569208,0.06495039,13.166,13.161,45.66]
[1672884577615,0.06495039,13.166,13.152,45.44]
[1672884577616,50.0,13.162,13.152,45.44]
[1672884577826,10.0,13.161,13.152,45.44]
[1672884580451,10.0,13.161,13.149,45.44]
[1672884580663,0.06088957,13.16,13.15,10.0]
[1672884580863,0.06088957,13.16,13.149,45.44]
[1672884581073,0.06088957,13.16,13.15,10.0]
[1672884581291,0.06088957,13.16,13.149,45.44]
[1672884581500,0.06088957,13.16,13.15,10.0]
[1672884581710,0.06088957,13.16,13.149,45.44]
[1672884581914,0.06088957,13.16,13.15,10.0]
[1672884582129,0.06088957,13.16,13.149,45.44]
[1672884582450,0.06088957,13.16,13.15,10.0]
[1672884582658,0.06088957,13.16,13.149,45.44]
[1672884582870,0.06088957,13.16,13.15,10.0]
[1672884583086,0.06088957,13.16,13.149,45.44]
[1672884583290,0.06088957,13.16,13.15,10.0]
[1672884583498,0.06088957,13.16,13.149,45.44]
[1672884583702,0.06088957,13.16,13.15,10.0]
[1672884583916,0.06088957,13.16,13.149,45.44]
[1672884584127,0.06088957,13.16,13.151,45.44]
[1672884584439,0.06013871,13.16,13.153,45.66]
[1672884584656,10.06747686,13.161,13.155,45.44]
[1672884584865,10.0,13.161,13.155,45.44]
[1672884585283,0.06186274,13.163,13.16,45.56]
[1672884585496,0.06903046,13.166,13.16,45.56]
[1672884585702,0.06245318,13.168,13.161,10.0]
[1672884585911,10.0,13.17,13.16,45.56]
[1672884585912,0.0606063,13.169,13.16,45.56]
[1672884586121,0.0606063,13.169,13.161,10.0]
[1672884586335,0.0606063,13.169,13.16,45.56]
[1672884586543,0.0606063,13.169,13.161,10.0]
[1672884586755,0.0606063,13.169,13.16,45.56]
[1672884586965,0.0606063,13.169,13.161,10.0]
[1672884587177,0.0606063,13.169,13.16,45.56]
[1672884587383,0.0606063,13.169,13.161,10.0]
[1672884587589,0.0606063,13.169,13.16,45.56]
[1672884587808,0.0606063,13.169,13.161,10.0]
[1672884588016,0.0606063,13.169,13.16,45.56]
[1672884588219,0.0606063,13.169,13.161,10.0]
[1672884588433,0.0606063,13.169,13.16,45.56]
[1672884588638,0.0606063,13.169,13.161,10.0]
[1672884588849,0.0606063,13.169,13.162,10.0]
[1672884589066,0.0606063,13.169,13.161,25.08]
[1672884589275,0.0606063,13.169,13.162,10.0]
[1672884589485,0.0606063,13.169,13.161,25.08]
[1672884589697,0.0606063,13.169,13.162,10.0]
[1672884590015,0.0606063,13.169,13.161,25.08]
[1672884590539,0.0606063,13.169,13.162,10.0]
[1672884590743,0.0606063,13.169,13.161,15.08]
[1672884599260,50.0,13.162,13.142,60.5]
[1672884599472,0.067279,13.157,13.153,15.19]
[1672884599679,0.06913178,13.16,13.153,15.19]
[1672884620800,0.06913178,13.16,13.156,15.19]
[1672884621016,0.06913178,13.16,13.158,15.19]
[1672884621332,0.06431476,13.164,13.158,15.19]
[1672884621542,10.06202416,13.166,13.158,15.19]
[1672884621968,0.06202416,13.166,13.16,15.19]
[1672884622176,1834.06237809,13.168,13.16,15.19]
[1672884623751,1834.06237809,13.168,13.162,15.08]
[1672884623959,1834.0,13.168,13.162,15.08]
[1672884626378,1834.0,13.169,13.162,15.08]
[1672884626583,10.0,13.168,13.162,15.08]
[1672884627003,1834.0,13.169,13.162,15.08]
[1672884628058,1834.0,13.169,13.16,15.19]
[1672884628267,1834.06028126,13.169,13.16,15.19]
[1672884630688,10.0,13.168,13.16,15.19]
[1672884648758,10.0,13.168,13.16,7.6]
[1672884668733,10.0,13.168,13.159,7.58]
[1672884668939,10.06851981,13.168,13.159,7.58]
[1672884683557,0.06851981,13.168,13.159,7.58]
[1672884683876,10.06851981,13.168,13.159,7.58]
[1672884684086,10.06851981,13.168,13.162,7.55]
[1672884684087,0.06851981,13.168,13.162,7.55]
[1672884684395,1834.0,13.169,13.162,7.55]
[1672884687340,1834.0,13.169,13.168,7.6]
[1672884687549,0.06566847,13.173,13.168,7.6]
[1672884687764,0.06765944,13.175,13.172,7.57]
[1672884688077,0.06361786,13.178,13.175,7.57]
[1672884688283,10.06629773,13.181,13.177,7.57]
[1672884688499,42.3773,13.182,13.177,7.57]
[1672884689233,0.06900442,13.184,13.177,7.57]
[1672884690603,7.62900442,13.184,13.174,7.57]
[1672884690811,104.8149,13.183,13.174,7.57]
[1672884691023,0.0622928,13.181,13.174,0.01]
[1672884694810,0.0622928,13.181,13.173,7.57]
[1672884695019,56.9,13.181,13.173,7.57]
[1672884695330,10.0,13.18,13.173,7.57]
[1672884696481,10.0,13.18,13.174,7.55]
[1672884697963,10.0,13.181,13.174,7.55]
[1672884699647,0.06714571,13.182,13.174,7.55]
[1672884699856,10.06714571,13.182,13.174,7.55]
[1672884701854,0.06714571,13.182,13.178,7.55]
[1672884702062,44.8149,13.183,13.178,7.55]
[1672884702274,94.8149,13.183,13.178,7.55]
[1672884703215,0.06643063,13.185,13.181,7.6]
[1672884703433,45.77493697,13.188,13.183,7.58]
[1672884703634,45.7103,13.188,13.183,7.58]
[1672884705850,10.0,13.187,13.18,7.58]
[1672884706483,45.77502563,13.188,13.18,7.58]
[1672884706693,45.77502563,13.188,13.181,7.57]
[1672884709849,10.0,13.187,13.181,7.57]
[1672884711852,57.6,13.183,13.173,7.6]
[1672884712056,55.9563,13.182,13.173,7.6]
[1672884712267,10.0,13.181,13.173,7.6]
[1672884717105,17.6,13.181,13.172,7.57]
[1672884717314,17.66766601,13.181,13.172,7.57]
[1672884718156,10.06766601,13.181,13.171,15.07]
[1672884718573,0.06766601,13.181,13.172,15.12]
[1672884718783,10.06766601,13.181,13.172,15.12]
[1672884722363,10.06766601,13.181,13.172,15.02]
[1672884724985,10.0,13.179,13.172,15.02]
[1672884725827,10.0,13.179,13.172,15.03]
[1672884726248,10.0,13.179,13.166,60.64]
[1672884726460,10.0,13.176,13.169,15.16]
[1672884728035,265.742,13.174,13.169,15.16]
[1672884728249,10.0,13.173,13.169,15.16]
[1672884728670,265.84857449,13.172,13.167,15.16]
[1672884728879,10.0,13.171,13.167,15.16]
[1672884729089,10.0,13.171,13.16,10.0]
[1672884729299,10.0,13.171,13.167,15.02]
[1672884729826,10.0,13.171,13.156,10.0]
[1672884730036,0.06953743,13.168,13.162,15.16]
[1672884730247,10.0,13.169,13.162,15.16]
[1672884730665,10.0,13.169,13.16,15.12]
[1672884730879,10.068564,13.169,13.16,15.12]
[1672884731613,25.168564,13.169,13.157,15.16]
[1672884731822,0.06982716,13.168,13.157,15.16]
[1672884732557,0.07049466,13.164,13.151,10.0]
[1672884732757,0.07049466,13.164,13.147,10.0]
[1672884732758,0.07049466,13.164,13.157,15.12]
[1672884732972,0.06780856,13.165,13.157,15.12]
[1672884733606,75.12,13.164,13.152,15.02]
[1672884733811,10.07123823,13.163,13.152,15.02]
[1672884734444,114.009,13.161,13.152,15.02]
[1672884734652,10.0,13.16,13.152,15.02]
[1672884734867,228.018,13.161,13.146,10.0]
[1672884734868,151.999,13.162,13.157,15.16]
[1672884735395,38.01,13.158,13.157,15.16]
[1672884736969,114.028,13.158,13.157,15.16]
[1672884737393,114.028,13.158,13.157,15.2]
[1672884742533,114.028,13.158,13.155,15.2]
[1672884743377,10.0,13.157,13.151,15.09]
[1672884743592,114.051,13.156,13.151,15.09]
[1672884743799,10.0,13.155,13.151,15.09]
[1672884744958,114.063,13.154,13.151,15.09]
[1672884745168,10.0,13.153,13.151,15.09]
[1672884745482,228.158,13.152,13.151,15.09]
[1672884748842,10.0,13.151,13.143,10.0]
[1672884749060,10.0,13.151,13.142,60.8]
[1672884749061,114.108,13.149,13.142,60.8]
[1672884749263,114.108,13.149,13.148,15.09]
[1672884756628,114.108,13.149,13.147,15.09]
[1672884762822,10.0,13.148,13.131,60.88]
[1672884763034,0.06988316,13.144,13.139,15.19]
[1672884763250,0.07081426,13.146,13.14,7.62]
[1672884763454,10.06730936,13.148,13.14,7.62]
[1672884764085,114.157,13.143,13.14,7.62]
[1672884764294,10.0,13.142,13.14,7.62]
[1672884764505,38.052,13.143,13.14,7.62]
[1672884764712,38.058,13.141,13.14,7.62]
[1672884765553,114.174,13.141,13.14,7.62]
[1672884770283,38.058,13.141,13.14,7.62]
[1672884775646,114.21609292,13.145,13.14,7.62]
[1672884776589,38.051,13.144,13.14,7.62]
[1672884776799,10.0,13.143,13.14,7.62]
[1672884777111,86.108,13.143,13.14,7.62]
[1672884777322,0.06909292,13.145,13.142,7.62]
[1672884777533,76.091,13.146,13.144,7.57]
[1672884777748,76.091,13.146,13.145,7.62]
[1672884778694,584.0,13.149,13.145,7.62]
[1672884778904,0.06764435,13.15,13.145,7.62]
[1672884782994,0.06764435,13.15,13.14,38.058]
[1672884783210,0.06764435,13.15,13.144,15.23]
[1672884787935,0.06764435,13.15,13.147,15.11]
[1672884788152,0.06751818,13.153,13.147,15.11]
[1672884788359,0.06712063,13.155,13.152,15.23]
[1672884788572,10.0,13.157,13.152,15.23]
[1672884790570,10.0,13.157,13.151,15.23]
[1672884790782,10.0,13.157,13.149,15.23]
[1672884791411,114.051,13.156,13.147,15.23]
[1672884791622,10.0,13.155,13.147,15.23]
[1672884794870,38.024,13.153,13.147,15.23]
[1672884795086,10.0,13.152,13.147,15.23]
[1672884795614,114.067,13.154,13.147,15.23]
[1672884796345,10.06427381,13.155,13.147,15.23]
[1672884803605,25.29427381,13.155,13.144,15.11]
[1672884803913,0.06093574,13.154,13.144,15.11]
[1672884804124,10.0,13.15,13.144,15.11]
[1672884804334,114.112,13.149,13.144,15.11]
[1672884804754,114.124,13.147,13.144,15.11]
[1672884804961,10.0,13.146,13.142,15.11]
[1672884805380,114.14,13.145,13.142,15.11]
[1672884805599,10.0,13.144,13.139,15.23]
[1672884805804,38.053,13.143,13.139,15.23]
[1672884806015,38.053,13.143,13.14,15.23]
[1672884806860,38.053,13.143,13.142,15.23]
[1672884814002,0.0670515,13.146,13.142,15.23]
[1672884814219,38.049,13.144,13.142,15.23]
[1672884817675,38.1110515,13.146,13.142,53.284]
[1672884818204,0.0670515,13.146,13.142,53.284]
[1672884818940,76.058,13.152,13.145,15.18]
[1672884819150,76.058,13.152,13.149,15.18]
[1672884822515,0.06414313,13.155,13.149,15.18]
[1672884828299,0.06414313,13.155,13.15,7.61]
[1672884829979,0.06414313,13.155,13.152,7.61]
[1672884830191,42.8478,13.157,13.152,7.61]
[1672884831449,42.8478,13.157,13.151,7.61]
[1672884833238,42.65748346,13.157,13.151,7.61]
[1672884833548,42.65748346,13.157,13.149,0.06279057]
[1672884833763,42.65748346,13.157,13.152,7.58]
[1672884835129,42.65748346,13.157,13.152,45.605]
[1672884839653,42.65748346,13.157,13.152,7.58]
[1672884840493,10.0,13.156,13.149,0.06279057]
[1672884841859,48.016,13.156,13.149,0.06279057]
[1672884842596,48.016,13.156,13.15,7.58]
[1672884845752,38.016,13.156,13.15,7.58]
[1672884850052,10.0,13.155,13.149,0.06279057]
[1672884850267,114.069,13.154,13.146,7.61]
[1672884850790,114.088,13.151,13.146,7.61]
[1672884850996,10.0,13.15,13.146,7.61]
[1672884852894,38.035,13.149,13.146,7.61]
[1672884853211,10.0,13.148,13.146,7.61]
[1672884853944,86.07,13.15,13.146,7.61]
[1672884854155,38.04,13.147,13.146,7.61]
[1672884862664,38.039,13.148,13.146,7.61]
[1672884862881,76.064,13.151,13.146,7.61]
[1672884863091,10.0,13.15,13.146,7.61]
[1672884863720,48.033,13.15,13.146,7.61]
[1672884865295,38.033,13.15,13.146,7.61]
[1672884867285,38.033,13.15,13.149,7.6]
[1672884867503,76.11624299,13.153,13.149,7.6]
[1672884870447,76.11624299,13.153,13.147,7.58]
[1672884876751,10.0,13.152,13.147,7.58]
[1672884879903,10.0,13.152,13.146,0.06070392]
[1672884882104,10.0,13.152,13.146,3.92e-06]
[1672884882319,7.55,13.15,13.146,3.92e-06]
[1672884882531,10.0,13.149,13.141,7.58]
[1672884883676,7.54,13.145,13.131,76.171]
[1672884883892,121.77418013,13.143,13.133,7.61]
[1672884884105,10.0,13.142,13.133,7.61]
[1672884885370,114.175,13.141,13.133,45.69]
[1672884885581,10.0,13.14,13.133,45.69]
[1672884886314,10.0,13.137,13.133,7.61]
[1672884887998,38.073,13.136,13.133,7.61]
[1672884888311,10.0,13.135,13.133,7.61]
[1672884888837,38.076,13.135,13.133,7.61]
[1672884890729,38.073,13.136,13.133,7.61]
[1672884893986,76.19487198,13.14,13.133,45.689]
[1672884894201,38.07,13.137,13.136,7.61]
[1672884900607,114.209,13.137,13.136,7.61]
[1672884900816,38.07,13.137,13.136,7.61]
[1672884905962,7.61,13.136,13.133,7.61]
[1672884906178,7.61,13.136,13.132,7.58]
[1672884906909,7.61,13.136,13.13,7.61]
[1672884911215,594.0,13.137,13.13,7.61]
[1672884911536,76.19559547,13.138,13.134,7.61]
[1672884911748,0.06059547,13.138,13.134,7.61]
[1672884913639,0.06059547,13.138,13.136,7.6]
[1672884913847,42.4567,13.141,13.136,7.6]
[1672884918367,10.0,13.14,13.131,7.58]
[1672884918684,7.54,13.139,13.129,7.61]
[1672884918895,10.0,13.138,13.129,7.61]
[1672884923827,10.0,13.138,13.122,10.0]
[1672884923828,7.6,13.137,13.127,7.6]
[1672884924039,10.0,13.136,13.127,7.6]
[1672884924354,51.6396,13.136,13.127,7.6]
[1672884926350,51.6396,13.136,13.121,10.0]
[1672884926351,51.6396,13.136,13.129,7.58]
[1672884930238,7.61,13.134,13.124,7.58]
[1672884930448,10.0,13.133,13.124,7.58]
[1672884931284,7.58,13.132,13.122,7.61]
[1672884931495,7.61,13.13,13.12,7.61]
[1672884931711,7.67591855,13.13,13.12,7.61]
[1672884931920,17.61,13.129,13.119,7.61]
[1672884932130,17.67379635,13.129,13.119,7.61]
[1672884933812,10.06379635,13.129,13.12,7.6]
[1672884934126,10.06338154,13.129,13.12,7.6]
[1672884934865,0.06338154,13.129,13.126,7.61]
[1672884935073,10.0,13.13,13.126,7.61]
[1672884937693,584.0,13.131,13.126,7.61]
[1672884941378,10.0,13.13,13.126,7.61]
[1672884941691,10.0,13.13,13.123,7.61]
[1672884943894,584.0,13.131,13.123,7.61]
[1672884944211,584.0,13.131,13.127,7.61]
[1672884944415,0.06777479,13.134,13.12,50.0]
[1672884944632,0.06615311,13.132,13.128,7.61]
[1672884944843,10.0,13.134,13.128,7.61]
[1672884945259,0.06048012,13.135,13.133,7.61]
[1672884945472,0.06123577,13.139,13.134,7.61]
[1672884945688,10.0,13.142,13.135,7.61]
[1672884945689,0.0709138,13.141,13.135,7.61]
[1672884946633,0.0709138,13.141,13.137,7.61]
[1672884947161,10.0,13.152,13.131,30.44]
[1672884947162,7.61,13.149,13.141,0.04740309]
[1672884947685,17.58,13.15,13.141,0.04740309]
[1672884948103,17.64370044,13.15,13.141,0.10934749]
[1672884948735,0.06370044,13.15,13.142,7.58]
[1672884950628,0.06370044,13.15,13.145,7.61]
[1672884952312,0.06370044,13.15,13.147,7.6]
[1672884952521,43.8605,13.151,13.147,7.6]
[1672884954198,0.06564631,13.153,13.147,7.6]
[1672884954516,0.06564631,13.153,13.149,7.61]
[1672884954727,0.06564631,13.153,13.15,10.0]
[1672884954938,10.06592989,13.156,13.15,10.0]
[1672884955143,10.06592989,13.156,13.149,7.61]
[1672884955352,0.06592989,13.156,13.149,7.61]
[1672884955775,10.06592989,13.156,13.149,7.61]
[1672884957141,10.06592989,13.156,13.147,7.67338241]
[1672884960088,0.06592989,13.156,13.147,0.06338241]
[1672884960298,0.06592989,13.156,13.149,15.17]
[1672884960716,0.06592989,13.156,13.15,10.0]
[1672884960927,44.7845,13.157,13.156,0.05903677]
[1672884961661,10.0,13.156,13.148,15.22]
[1672884964292,10.0,13.156,13.147,0.06110467]
[1672884965549,82.23,13.156,13.147,0.06110467]
[1672884969330,10.0,13.155,13.147,4.67e-06]
[1672884969541,15.22,13.15,13.141,0.04740309]
[1672884969751,10.0,13.149,13.141,0.04740309]
[1672884969962,67.04,13.149,13.141,0.04740309]
[1672884971223,0.06766814,13.15,13.141,0.04740309]
[1672884971428,0.06766814,13.15,13.142,15.22]
[1672884972692,0.06766814,13.15,13.145,15.22]
[1672884972900,0.06766814,13.15,13.147,15.17]
[1672884973217,0.06743419,13.153,13.147,15.17]
[1672884973428,0.06427542,13.155,13.147,15.17]
[1672884974264,0.06427542,13.155,13.149,15.17]
[1672884979104,65.28427542,13.155,13.145,0.06122731]
[1672884979420,10.0,13.154,13.145,0.06122731]
[1672884979838,45.8434,13.153,13.145,0.06122731]
[1672884980050,10.0,13.152,13.145,0.06122731]
[1672884981203,45.8434,13.153,13.145,0.06122731]
[1672884981405,45.8434,13.153,13.146,15.22]
[1672884981616,45.8434,13.153,13.147,10.0]
[1672884982465,0.06427542,13.155,13.148,15.22]
[1672884982675,0.06427542,13.155,13.15,15.22]
[1672884982880,0.06427542,13.155,13.148,0.0705634]
[1672884983095,0.06427542,13.155,13.152,15.09]
[1672884983409,0.07098253,13.158,13.153,10.0]
[1672884983618,0.07098253,13.158,13.157,15.22]
[1672884983828,0.07039268,13.162,13.157,15.22]
[1672884986036,10.07039268,13.162,13.155,0.06029452]
[1672884988141,15.07,13.161,13.155,0.06029452]
[1672884988345,10.0,13.16,13.155,0.06029452]
[1672884992546,25.07,13.161,13.155,0.06029452]
[1672884998750,10.07039268,13.162,13.155,0.06029452]
[1672885000541,0.07039268,13.162,13.155,0.06029452]
[1672885000746,10.07039268,13.162,13.155,0.06029452]
[1672885008740,25.29039268,13.162,13.155,0.06029452]
[1672885010942,10.07039268,13.162,13.155,0.06029452]
[1672885012834,0.07039268,13.162,13.155,0.06029452]
[1672885013146,0.07039268,13.162,13.158,15.22]
[1672885014826,0.07039268,13.162,13.159,15.17]
[1672885015037,43.6019,13.163,13.159,15.17]
[1672885015879,0.06112925,13.165,13.159,15.17]
[1672885016298,0.06112925,13.165,13.161,15.09]
[1672885016515,0.06112925,13.165,13.162,10.0]
[1672885016715,584.0,13.167,13.162,10.0]
[1672885016926,43.44124335,13.168,13.159,0.07117076]
[1672885017141,10.0,13.167,13.161,15.09]
[1672885017873,0.06944335,13.168,13.163,15.22]
[1672885019665,584.0,13.174,13.167,15.09]
[1672885019879,584.0,13.174,13.173,15.09]
[1672885020089,43.2135,13.178,13.173,15.09]
[1672885020296,10.0,13.177,13.169,15.22]
[1672885027338,43.28241053,13.178,13.17,15.22]
[1672885028073,43.28241053,13.178,13.172,15.17]
[1672885028702,0.06891053,13.178,13.172,15.17]
[1672885033427,0.06891053,13.178,13.168,0.06259335]
[1672885033642,0.06891053,13.178,13.168,15.28259335]
[1672885036792,50.0,13.174,13.164,15.22]
[1672885037007,15.22,13.172,13.16,15.22]
[1672885037212,10.0,13.171,13.16,15.22]
[1672885037846,0.0673889,13.17,13.161,0.0634599]
[1672885039949,0.0673889,13.17,13.163,15.09]
[1672885040161,0.0673889,13.17,13.165,15.22]
[1672885043202,0.0673889,13.17,13.162,15.22]
[1672885047306,0.0673889,13.17,13.161,0.0634599]
[1672885047935,10.0673889,13.17,13.161,0.0634599]
[1672885053510,15.1,13.168,13.161,0.0634599]
[1672885053715,10.0,13.167,13.156,15.09]
[1672885053927,15.22,13.16,13.148,15.22]
[1672885054241,10.0,13.159,13.148,15.22]
[1672885054874,0.06201042,13.158,13.148,15.22]
[1672885056861,0.06201042,13.158,13.15,15.22]
[1672885057185,0.07137148,13.159,13.15,15.22]
[1672885057392,0.07137148,13.159,13.151,15.22]
[1672885057605,0.06133911,13.16,13.151,15.22]
[1672885060856,0.06133911,13.16,13.154,15.22]
[1672885061179,10.06794736,13.162,13.154,15.22]
[1672885062331,10.06794736,13.162,13.156,15.17]
[1672885062537,10.0,13.162,13.156,15.17]
[1672885063171,10.0,13.162,13.155,45.25]
[1672885064746,584.06373426,13.163,13.155,45.25]
[1672885067583,10.0,13.162,13.155,45.25]
[1672885069576,584.06373426,13.163,13.155,45.25]
[1672885069786,584.06373426,13.163,13.158,45.35]
[1672885069997,0.06373426,13.163,13.158,45.35]
[1672885070422,0.06373426,13.163,13.149,10.0]
[1672885070423,0.06373426,13.163,13.16,45.6]
[1672885070632,0.06036522,13.166,13.161,55.44]
[1672885070843,0.0685437,13.168,13.161,45.44]
[1672885071157,10.0,13.166,13.161,45.44]
[1672885071680,0.0685437,13.168,13.165,45.6]
[1672885071894,10.0,13.169,13.165,45.6]
[1672885072513,10.0,13.169,13.163,45.44]
[1672885075568,0.06455115,13.171,13.163,45.44]
[1672885078511,0.06455115,13.171,13.165,45.35]
[1672885078827,0.06455115,13.171,13.166,10.0]
[1672885079353,0.06455115,13.171,13.165,45.35]
[1672885084083,0.06455115,13.171,13.17,15.06]
[1672885084395,42.3208,13.178,13.17,15.06]
[1672885084605,42.3208,13.178,13.173,15.17]
[1672885087434,0.07045498,13.18,13.171,0.06218499]
[1672885087435,0.07045498,13.18,13.174,15.13]
[1672885089021,0.07045498,13.18,13.173,15.06]
[1672885101317,0.07045498,13.18,13.176,15.06]
[1672885105523,0.07045498,13.18,13.177,10.0]
[1672885105732,0.06207932,13.183,13.178,15.13]
[1672885105943,0.06373584,13.185,13.178,15.13]
[1672885106150,0.06373584,13.185,13.179,10.0]
[1672885106574,1834.0,13.184,13.176,0.06149867]
[1672885106889,10.0,13.183,13.176,0.06149867]
[1672885116035,1834.0,13.184,13.176,0.06149867]
[1672885125081,10.0,13.183,13.176,0.06149867]
[1672885128966,0.06373584,13.185,13.183,0.19704641]
[1672885129177,584.0,13.191,13.184,7.58]
[1672885129178,0.06183966,13.189,13.184,7.58]
[1672885129388,10.0,13.19,13.186,7.56]
[1672885131173,0.06071385,13.191,13.186,7.56]
[1672885134014,0.06071385,13.191,13.186,7.49663702]
[1672885135800,0.06071385,13.191,13.188,7.56]
[1672885136015,1844.06476436,13.194,13.188,7.56]
[1672885142326,1844.06476436,13.194,13.186,7.56]
[1672885142849,1844.06476436,13.194,13.185,15.16312437]
[1672885144101,1844.06476436,13.194,13.185,14.95362828]
[1672885147053,0.06476436,13.194,13.187,15.02]
[1672885147267,0.06476436,13.194,13.192,15.02]
[1672885147582,0.06079552,13.198,13.193,15.1]
[1672885147792,10.0,13.201,13.193,15.1]
[1672885148106,0.06424536,13.2,13.196,15.1]
[1672885148307,43.9177,13.202,13.196,15.1]
[1672885149787,0.06103935,13.203,13.196,15.1]
[1672885150000,0.06103935,13.203,13.199,15.1]
[1672885151048,0.06103935,13.203,13.201,15.14]
[1672885151259,43.167,13.206,13.202,25.14]
[1672885151463,10.06276506,13.209,13.202,15.14]
[1672885151679,0.06276506,13.209,13.202,15.14]
[1672885152311,0.06276506,13.209,13.205,15.1]
[1672885152624,45.5368136,13.212,13.205,15.1]
[1672885153044,10.0,13.211,13.202,15.14]
[1672885153250,10.06239927,13.211,13.202,15.14]
[1672885154305,10.06239927,13.211,13.201,15.14]
[1672885157359,10.06239927,13.211,13.201,15.1]
[1672885157565,66.83239927,13.211,13.201,15.1]
[1672885157985,81.93239927,13.211,13.199,15.1]
[1672885158300,81.93239927,13.211,13.19,14.96]
[1672885158301,15.1,13.202,13.19,14.96]
[1672885158512,15.05,13.2,13.188,15.08]
[1672885158830,10.06770705,13.199,13.19,14.96]
[1672885159050,10.06696431,13.199,13.19,14.96]
[1672885160299,0.06696431,13.199,13.19,14.96]
[1672885160509,0.06696431,13.199,13.192,15.08]
[1672885160720,0.06606644,13.2,13.192,15.08]
[1672885160932,0.06606644,13.2,13.19,15.1]
[1672885161246,0.06103894,13.2,13.19,15.1]
[1672885163764,0.06103894,13.2,13.192,15.04]
[1672885165341,0.06103894,13.2,13.19,15.1]
[1672885165657,0.06103894,13.2,13.183,0.19704641]
[1672885165658,10.0,13.192,13.183,0.19704641]
[1672885165973,10.07088205,13.192,13.183,0.19704641]
[1672885168489,0.07088205,13.192,13.185,15.1]
[1672885170075,8.205e-05,13.192,13.191,15.1]
[1672885170387,15.1,13.203,13.191,15.1]
[1672885170598,25.1,13.203,13.191,15.1]
[1672885170807,10.0,13.203,13.193,15.1]